{"text_format":"1","workbook":"xlsx","n_sheets":6,"sheets":["Import Octave Band","Report Octave Band","Import Third-Octave Band","Report Third-Octave Band","Language-Text","Instruction"],"not_rendered":{"charts":2,"images":1,"macros":1,"external_links":0,"defined_names":13,"comments":0,"pivot_tables":0},"unopened":[],"bounds":{"document_bytes":16777216,"sheet_cells":100000,"rows_first":2000,"rows_last":500,"rows_between":2000,"halvings":0,"cell_chars":16384,"cell_head_chars":4096},"cells_cut":0,"cells_raw":0,"read":"whole","date_system":"1900"}

{"sheet":"Import Octave Band","index":0,"n_rows":8,"n_cols":16,"rows_kept":8,"cut":false,"hidden":false,"merged":[[4,1,4,12]]}
[]
[{"$f":"'Language-Text'!B5 & \" \" & 'Language-Text'!B10","v":"Octave Band RTA-Files"},null,null,null,null,null,null,{"$f":"'Language-Text'!B14","v":"FileCount"},0]
[]
[]
[{"$f":"'Language-Text'!B16","v":"File name"},{"$f":"'Language-Text'!B18","v":"RTA Measurement Result"}]
[null,0,0,0,0,0,0,0,0,0,0,0,0]
[{"$f":"'Language-Text'!B26","v":"Frequency"},8,16,32.5,63,125,250,500,1000,2000,4000,8000,16000,null,null,{"$f":"'Language-Text'!B17","v":"Path"}]
[{"$f":"'Language-Text'!B15","v":"Average"}]

{"sheet":"Report Octave Band","index":1,"n_rows":40,"n_cols":19,"rows_kept":40,"cut":false,"hidden":false,"merged":[[0,0,0,23],[1,0,1,23],[11,1,11,2],[12,1,12,2],[13,1,13,2]]}
[{"$f":"'Language-Text'!B20","v":"RTA Report"}]
[]
[]
[null,{"$f":"'Language-Text'!B22","v":"Client:"},null,null,"xxxx",null,null,null,null,null,null,null,null,null,null,null,null,{"$f":"'Language-Text'!B25","v":"Date of test:"},"xxxx"]
[null,{"$f":"'Language-Text'!B23","v":"Object:"},null,null,"xxxx"]
[null,{"$f":"'Language-Text'!B24","v":"Description:"},null,null,"xxxx"]
[null,null,null,null,"xxxx"]
[null,null,null,null,"xxxx"]
[]
[]
[]
[null,{"$f":"'Language-Text'!B26","v":"Frequency"},null,"RTA"]
[null,"f",null,{"$f":"'Language-Text'!B5","v":"Octave Band"}]
[null,"[Hz]",null,"[dB]"]
[null,8,null,{"$f":"IF('Import Octave Band'!B6>0,'Import Octave Band'!B8,\"\")","v":""}]
[null,16,null,{"$f":"IF('Import Octave Band'!C6>0,'Import Octave Band'!C8,\"\")","v":""}]
[null,32.5,null,{"$f":"IF('Import Octave Band'!D6>0,'Import Octave Band'!D8,\"\")","v":""}]
[null,63,null,{"$f":"IF('Import Octave Band'!E6>0,'Import Octave Band'!E8,\"\")","v":""}]
[null,125,null,{"$f":"IF('Import Octave Band'!F6>0,'Import Octave Band'!F8,\"\")","v":""}]
[null,250,null,{"$f":"IF('Import Octave Band'!G6>0,'Import Octave Band'!G8,\"\")","v":""}]
[null,500,null,{"$f":"IF('Import Octave Band'!H6>0,'Import Octave Band'!H8,\"\")","v":""}]
[null,1000,null,{"$f":"IF('Import Octave Band'!I6>0,'Import Octave Band'!I8,\"\")","v":""}]
[null,2000,null,{"$f":"IF('Import Octave Band'!J6>0,'Import Octave Band'!J8,\"\")","v":""}]
[null,4000,null,{"$f":"IF('Import Octave Band'!K6>0,'Import Octave Band'!K8,\"\")","v":""}]
[null,8000,null,{"$f":"IF('Import Octave Band'!L6>0,'Import Octave Band'!L8,\"\")","v":""}]
[null,16000,null,{"$f":"IF('Import Octave Band'!M6>0,'Import Octave Band'!M8,\"\")","v":""}]
[]
[]
[]
[]
[]
[]
[]
[]
[]
[]
[]
[null,{"$f":"'Language-Text'!B$27","v":"No. of test report:"},null,null,null,null,null,null,null,{"$f":"'Language-Text'!B$29","v":"Name:"}]
[]
[null,{"$f":"'Language-Text'!B$28","v":"Date:"},null,null,null,null,null,null,null,{"$f":"'Language-Text'!B$30","v":"Signature:"}]

{"sheet":"Import Third-Octave Band","index":2,"n_rows":9,"n_cols":40,"rows_kept":9,"cut":false,"hidden":false,"merged":[[0,12,0,13],[4,1,4,36]]}
[]
[{"$f":"'Language-Text'!B8 & \" \" & 'Language-Text'!B10","v":"Third-Octave Band RTA-Files"},null,null,null,null,null,null,{"$f":"'Language-Text'!B14","v":"FileCount"},1]
[]
[]
[{"$f":"'Language-Text'!B16","v":"File name"},{"$f":"'Language-Text'!B18","v":"RTA Measurement Result"},null,null,null,null,null,null,null,null,null,null,null,null,null,null,null,null,null,null,null,null,null,null,null,null,null,null,null,null,null,null,null,null,null,null,null,null,null,{"$f":"'Language-Text'!B17","v":"Path"}]
[null,1,1,1,1,1,1,1,1,1,1,1,1,1,1,1,1,1,1,1,1,1,1,1,1,1,1,1,1,1,1,1,1,1,1,1,1]
[{"$f":"'Language-Text'!B26","v":"Frequency"},6.3,8,10,12.5,16,20,25,32.5,40,50,63,80,100,125,160,200,250,315,400,500,630,800,1000,1250,1600,2000,2500,3150,4000,5000,6300,8000,10000,12500,16000,20000]
[{"$f":"'Language-Text'!B15","v":"Average"},-42.5,-29.699999999999992,-20.300000000000004,-9.3999999999999986,-8,-16.699999999999996,-14.099999999999998,-18.599999999999998,4.7,8.4999999999999982,35.899999999999991,19.100000000000001,32.5,56.1,55.199999999999996,58.699999999999996,59.399999999999984,62.4,60.29999999999999,54.7,51.599999999999994,49.5,47,48.099999999999994,44.899999999999991,45.999999999999993,45.9,47.099999999999994,47,40.599999999999994,35.4,21.699999999999996,18.8,14.599999999999998,10,6.3999999999999995]
["2018-11-28_SLM_006_RTA_3rd_Report.txt",-42.5,-29.7,-20.3,-9.4,-8,-16.7,-14.1,-18.600000000000001,4.7,8.5,35.9,19.100000000000001,32.5,56.1,55.2,58.7,59.4,62.4,60.3,54.7,51.6,49.5,47,48.1,44.9,46,45.9,47.1,47,40.6,35.4,21.7,18.8,14.6,10,6.4,null,null,"G:\\Projects\\ MyProject\\2018-11-28_SLM_006_RTA_3rd_Report.txt"]

{"sheet":"Report Third-Octave Band","index":3,"n_rows":56,"n_cols":19,"rows_kept":56,"cut":false,"hidden":false,"merged":[[11,1,11,2],[12,1,12,2],[13,1,13,2],[0,0,0,23],[1,0,1,23]]}
[{"$f":"'Language-Text'!B20","v":"RTA Report"}]
[]
[]
[null,{"$f":"'Language-Text'!B22","v":"Client:"},null,null,"xxxx",null,null,null,null,null,null,null,null,null,null,null,null,{"$f":"'Language-Text'!B25","v":"Date of test:"},"xxxx"]
[null,{"$f":"'Language-Text'!B23","v":"Object:"},null,null,"xxxx"]
[null,{"$f":"'Language-Text'!B24","v":"Description:"},null,null,"xxxx"]
[null,null,null,null,"xxxx"]
[null,null,null,null,"xxxx"]
[]
[]
[]
[null,{"$f":"'Language-Text'!B26","v":"Frequency"},null,"RTA"]
[null,"f",null,{"$f":"'Language-Text'!B8","v":"Third-Octave Band"}]
[null,"[Hz]",null,"[dB]"]
[null,6.3,null,{"$f":"IF('Import Third-Octave Band'!B6>0,'Import Third-Octave Band'!B8,\"\")","v":-42.5}]
[null,8,null,{"$f":"IF('Import Third-Octave Band'!C6>0,'Import Third-Octave Band'!C8,\"\")","v":-29.699999999999992}]
[null,10,null,{"$f":"IF('Import Third-Octave Band'!D6>0,'Import Third-Octave Band'!D8,\"\")","v":-20.300000000000004}]
[null,12.5,null,{"$f":"IF('Import Third-Octave Band'!E6>0,'Import Third-Octave Band'!E8,\"\")","v":-9.3999999999999986}]
[null,16,null,{"$f":"IF('Import Third-Octave Band'!F6>0,'Import Third-Octave Band'!F8,\"\")","v":-8}]
[null,20,null,{"$f":"IF('Import Third-Octave Band'!G6>0,'Import Third-Octave Band'!G8,\"\")","v":-16.699999999999996}]
[null,25,null,{"$f":"IF('Import Third-Octave Band'!H6>0,'Import Third-Octave Band'!H8,\"\")","v":-14.099999999999998}]
[null,32.5,null,{"$f":"IF('Import Third-Octave Band'!I$6>0,'Import Third-Octave Band'!I$8,\"\")","v":-18.599999999999998}]
[null,40,null,{"$f":"IF('Import Third-Octave Band'!J$6>0,'Import Third-Octave Band'!J$8,\"\")","v":4.7}]
[null,50,null,{"$f":"IF('Import Third-Octave Band'!K$6>0,'Import Third-Octave Band'!K$8,\"\")","v":8.4999999999999982}]
[null,63,null,{"$f":"IF('Import Third-Octave Band'!L$6>0,'Import Third-Octave Band'!L$8,\"\")","v":35.899999999999991}]
[null,80,null,{"$f":"IF('Import Third-Octave Band'!M$6>0,'Import Third-Octave Band'!M$8,\"\")","v":19.100000000000001}]
[null,100,null,{"$f":"IF('Import Third-Octave Band'!N$6>0,'Import Third-Octave Band'!N$8,\"\")","v":32.5}]
[null,125,null,{"$f":"IF('Import Third-Octave Band'!O$6>0,'Import Third-Octave Band'!O$8,\"\")","v":56.1}]
[null,160,null,{"$f":"IF('Import Third-Octave Band'!P$6>0,'Import Third-Octave Band'!P$8,\"\")","v":55.199999999999996}]
[null,200,null,{"$f":"IF('Import Third-Octave Band'!Q$6>0,'Import Third-Octave Band'!Q$8,\"\")","v":58.699999999999996}]
[null,250,null,{"$f":"IF('Import Third-Octave Band'!R$6>0,'Import Third-Octave Band'!R$8,\"\")","v":59.399999999999984}]
[null,315,null,{"$f":"IF('Import Third-Octave Band'!S$6>0,'Import Third-Octave Band'!S$8,\"\")","v":62.4}]
[null,400,null,{"$f":"IF('Import Third-Octave Band'!T$6>0,'Import Third-Octave Band'!T$8,\"\")","v":60.29999999999999}]
[null,500,null,{"$f":"IF('Import Third-Octave Band'!U$6>0,'Import Third-Octave Band'!U$8,\"\")","v":54.7}]
[null,630,null,{"$f":"IF('Import Third-Octave Band'!V$6>0,'Import Third-Octave Band'!V$8,\"\")","v":51.599999999999994}]
[null,800,null,{"$f":"IF('Import Third-Octave Band'!W$6>0,'Import Third-Octave Band'!W$8,\"\")","v":49.5}]
[null,1000,null,{"$f":"IF('Import Third-Octave Band'!X$6>0,'Import Third-Octave Band'!X$8,\"\")","v":47}]
[null,1250,null,{"$f":"IF('Import Third-Octave Band'!Y$6>0,'Import Third-Octave Band'!Y$8,\"\")","v":48.099999999999994}]
[null,1600,null,{"$f":"IF('Import Third-Octave Band'!Z$6>0,'Import Third-Octave Band'!Z$8,\"\")","v":44.899999999999991}]
[null,2000,null,{"$f":"IF('Import Third-Octave Band'!AA$6>0,'Import Third-Octave Band'!AA$8,\"\")","v":45.999999999999993}]
[null,2500,null,{"$f":"IF('Import Third-Octave Band'!AB$6>0,'Import Third-Octave Band'!AB$8,\"\")","v":45.9}]
[null,3150,null,{"$f":"IF('Import Third-Octave Band'!AC$6>0,'Import Third-Octave Band'!AC$8,\"\")","v":47.099999999999994}]
[null,4000,null,{"$f":"IF('Import Third-Octave Band'!AD$6>0,'Import Third-Octave Band'!AD$8,\"\")","v":47}]
[null,5000,null,{"$f":"IF('Import Third-Octave Band'!AE$6>0,'Import Third-Octave Band'!AE$8,\"\")","v":40.599999999999994}]
[null,6300,null,{"$f":"IF('Import Third-Octave Band'!AF$6>0,'Import Third-Octave Band'!AF$8,\"\")","v":35.4}]
[null,8000,null,{"$f":"IF('Import Third-Octave Band'!AG$6>0,'Import Third-Octave Band'!AG$8,\"\")","v":21.699999999999996}]
[null,10000,null,{"$f":"IF('Import Third-Octave Band'!AH$6>0,'Import Third-Octave Band'!AH$8,\"\")","v":18.8}]
[null,12500,null,{"$f":"IF('Import Third-Octave Band'!AI$6>0,'Import Third-Octave Band'!AI$8,\"\")","v":14.599999999999998}]
[null,16000,null,{"$f":"IF('Import Third-Octave Band'!AJ$6>0,'Import Third-Octave Band'!AJ$8,\"\")","v":10}]
[null,20000,null,{"$f":"IF('Import Third-Octave Band'!AK$6>0,'Import Third-Octave Band'!AK$8,\"\")","v":6.3999999999999995}]
[]
[]
[]
[null,{"$f":"'Language-Text'!B$27","v":"No. of test report:"},null,null,null,null,null,null,null,{"$f":"'Language-Text'!B$29","v":"Name:"}]
[]
[null,{"$f":"'Language-Text'!B$28","v":"Date:"},null,null,null,null,null,null,null,{"$f":"'Language-Text'!B$30","v":"Signature:"}]

{"sheet":"Language-Text","index":4,"n_rows":36,"n_cols":9,"rows_kept":36,"cut":false,"hidden":false,"merged":[]}
["English","Active","English","Deutsch","Español","Français","中文","한국어","Japanese"]
["Deutsch","Instruction","Instruction","Anleitung","Instrucción","Instruction","指令","교수","命令"]
["Español","Import Octave Band","Import Octave Band","Import Oktavband","Importar Octava","Importation à l'octave","导入倍频程数据","중요 옥타브 밴드","インポート オクターブバンド"]
["Français","Report Octave Band","Report Octave Band","Report Oktavband","Reportar Octava","Rapport à l’octave","生成倍频程报告","옥타부 밴드 보고서 ","レポート オクターブバンド"]
["中文","Octave Band","Octave Band","Oktavband","Banda de Octava","Bande à l'octave","倍频程","옥타부 밴드  ","オクターブバンド"]
["한국어","Import Third-Octave Band","Import Third-Octave Band","Import Terzband","Importar Banda Tercio de Octava","Importation au tier d'octave","导入三分之一倍频程数据","1_3 Band 가져 오기 1_3차 옥타부 밴드 가져오","インポート 1_3オクターブバンド"]
["Japanese","Report Third-Octave Band","Report Third-Octave Band","Report Terzband","Reportar Banda Tercio de Octava","Rapport au tier d'octave","生成三分之一倍频程报告","3차 옥타부 밴드 보고서","レポート 1_3オクターブバンド"]
[null,"Third-Octave Band","Third-Octave Band","Terzband","Banda Tercio de Octava","Bande au 1/3 d'octave","1/3 倍频程","3차 옥타부 밴드","1/3オクターブバンド"]
[null,"Language-Text","Language-Text","Sprachen-Text","Idioma-Texto","Langue-Texte","语言文本","언어 본문 ","言語テキスト"]
[null,"RTA-Files","RTA-Files","RTA-Datei","Archivos-RTA","Fichier RTA","RTA 文件","RTA- 파일","RTA-ファイル"]
[null,"Load File","Load File","Datei Laden","Cargar Archivo","Charger le fichier","载入文件","파일 로드","ファイル読込"]
[null,"Delete All","Delete All","Alle Löschen","Eliminar Todo","Tout effacer","全部删除","모두 삭제","全消去"]
[null,"RTA Level","RTA Level","Spektralpegel","Reverberación","Niveau RTA","RTA 声压级","잔향 시간 ","RTAレベル"]
[null,"FileCount","FileCount","Dateizähler:","Recuento de Archivos:","Nombre de fichiers","文件数","파일 계산 수","ファイル数"]
[null,"Average","Average","Mittelwert","Promedio","Moyenne","平均值","평균의","平均"]
[null,"File name","File name","Dateiname","Nombre Archivo","Nom de fichier","文件名","파일 명","ファイル名"]
[null,"Path","Path","Dateipfad","Ruta","Chemin","路径","경로","パス"]
[null,"RTA Measurement Result","RTA Measurement Result","RTA Messergebnis","Medida RTA","Résultat de a mesure RTA","RTA 测量结果","RTA  측정 결과 ","RTA測定結果"]
[null,"Measurement Uncertainty","Measurement Uncertainty","Messunsicherheit","Medida Incertidumbre","Incertitude des mesures","测量不确定度","불확도 측정","測定の不確かさ"]
[null,"RTA Report","RTA Report","RTA Report","RTA Report","Rapport de la mesure RTA","RTA 报告","RTA 보고서","RTAレポート"]
[null,null,null,null,null,null,null," "]
[null,"Client:","Client:","Kunde:","Cliente:","Client:","客户：","고객","顧客名"]
[null,"Object:","Object:","Objekt:","Propósito:","Object:","对象：","목적","件名"]
[null,"Description:","Description:","Beschreibung:","Descripción:","Description:","描述：","보고서 설명/내용","摘要"]
[null,"Date of test:","Date of test:","Datum der Messung:","Fecha del test:","Date du test:","测试日期：","시험 일자","測定日"]
[null,"Frequency","Frequency","Frequenz","Frecuencia","Fréquence","频率","주파수","周波数"]
[null,"No. of test report:","No. of test report:","Messbericht-Nr.:","Num. de  informe:","N ° du rapport d'essai:","测试报告编号：","보고서 번호","レポート番号"]
[null,"Date:","Date:","Datum:","Fecha:","Date:","日期：","날자","日付"]
[null,"Name:","Name:","Name:","Nombre:","Nom:","姓名：","이름","測定者"]
[null,"Signature:","Signature:","Unterschrift:","Firma:","Signature:","签名：","서명","署名"]
[null,"Language:","Language:","Sprache:","Idioma:","langue:","语言：","언어","言語"]
[null,"does not contain valid RTA data!","does not contain valid RTA data!","beinhaltet keine gültigen RTA-Daten!","¡No contiene datos válidos RTA!","Ne contient pas de données RTA valides!","不存在有效的 RTA 数据！","유효한 RTA 데이터가 없음","有効なRTAデータがありません"]
[null,"does not contain valid RTA data with 1/1 Octave Resolution","does not contain valid RTA data with 1/1 Octave Resolution","beinhaltet keine gültigen Oktavband-Daten!","No contiene datos válidos RTA con resolución de 1/1 Octava","Ne contient pas de données RTA valides avec une résolution au 1/1 octave","不存在有效的倍频程 RTA 数据！","1/1 옥타브 해상도의 유효한 RTA데이터가 없음","有効な1/1オクターブ解像度RTAデータがありません"]
[null,"does not contain valid RTA data with 1/3 Octave Resolution","does not contain valid RTA data with 1/3 Octave Resolution","beinhaltet keine gültigen Terzband-Daten!","No contiene datos válidos RTA con resolución de 1/3 Octava","Ne contient pas de données RTA valides avec une résolution au 1/3 octave","不存在有效的 1/3 倍频程 RTA 数据！","1/3 옥타브 해상도의 유효한 RTA 데이터가 없습니다.","有効な1/3オクターブ解像度RTAデータがありません"]
[null,"is an Append or Rpt_Report file. The import is not supported.","is an Append or Rpt_Report file. The import is not supported.","ist eine Append- oder Rpt_Report-Datei. Dieser Dateityp wird nicht unterstützt.","is an Append or Rpt_Report file. The import is not supported.","is an Append or Rpt_Report file. The import is not supported.","is an Append or Rpt_Report file. The import is not supported.","is an Append or Rpt_Report file. The import is not supported.","is an Append or Rpt_Report file. The import is not supported."]
[null,"RTA Report","RTA Report","RTA Report","RTA Report","Rapport de la mesure RTA","RTA 报告","RTA 보고서","RTAレポート"]

{"sheet":"Instruction","index":5,"n_rows":38,"n_cols":7,"rows_kept":38,"cut":false,"hidden":false,"merged":[[27,2,27,10],[2,1,2,3]]}
[]
[null,{"$f":"'Language-Text'!B36","v":"RTA Report"},null,null,null,null,{"$f":"'Language-Text'!B31","v":"Language:"}]
[null,"December 2016, V1.02"]
[]
[]
[]
[]
[null,"Welcome to the RTA Reporting Tool of NTi Audio."]
[null,"You may import one or multiple RTA report file(s) into this form and create a measurement report."]
[]
[]
[null,"•","Select either the tab \"Import Octave Band\" or \"Import Third-Octave Band\""]
[null,"•","Click the button \"Load File\""]
[null,"•","Select the RTA file (such as '*_RTA_***_Report.txt')"]
[null,"•","Confirm the selection to load the data set into the Reporting Tool"]
[null,"•","See the loaded RTA data"]
[null,"•","Select the corresponding report tab and see the measurement report"]
[null,"•","Set the Y-Scaling of the chart manually in accordance with your requirements"]
[]
[]
[null,"Requirements"]
[null,"•","An XL2 file with ending \"*_RTA_***_Report.txt\" is required"]
[null,"•","XL2 Sound Level Meter with Firmware V2.52 or higher"]
[null,"•","Microsoft Excel 2007 or higher"]
[]
[]
[null,"Notes"]
[null,"•","It is recommended that you first load all data from the XL2 onto the computer hard drive. Data import into this form is quicker from the computer hard drive ."]
[null,"•","1/1 octave files shall be imported in the page \"Import Octave Band\"."]
[null,"•","1/3 octave files shall be imported in the page \"Import Third-Octave Band\"."]
[]
[]
[null,"Add your local language"]
[null,"•","Select the tab \"Language-Text\""]
[null,"•","Write your local language into the next empty column on the right"]
[null,"•","Translate all text into the new column"]
[null,"•","Select any other language above"]
[null,"•","Now select your language"]